bitfinex/quotes_SOLUSD_20220302
["timestamp","ask_amount","ask_price","bid_price","bid_amount"]
[1646261661739,303.71858173,101.0,100.99,106.47904003]
[1646261662442,160.64858173,101.0,100.99,7.79904003]
[1646261662838,132.04438173,101.0,100.99,2.79904003]
[1646261663240,132.04438173,101.0,100.99,7.79904003]
[1646261663839,132.04438173,101.0,100.99,106.47904003]
[1646261664041,132.04438173,101.0,100.99,118.34904003]
[1646261664240,132.04438173,101.0,100.99,19.66904003]
[1646261666246,111.37899047,101.0,100.99,19.66904003]
[1646261667247,111.37899047,101.0,100.99,19.41904003]
[1646261667448,111.37899047,101.0,100.99,16.87]
[1646261667659,111.37899047,101.0,100.99,5.0]
[1646261668476,10.0,100.99,100.93,11.87]
[1646261669083,10.25,100.99,100.93,11.87]
[1646261669305,3.71858173,100.98,100.93,11.87]
[1646261670078,3.71858173,100.98,100.93,26.9818]
[1646261670479,3.71858173,100.98,100.97,5.0]
[1646261675890,3.71858173,100.99,100.97,5.0]
[1646261676088,3.71858173,100.99,100.97,5.25]
[1646261677086,3.71858173,100.99,100.97,5.0]
[1646261677287,3.71858173,100.99,100.94,14.8611]
[1646261677688,3.71858173,100.99,100.98,5.0]
[1646261679593,3.71858173,100.99,100.98,8.03219997]
[1646261680493,3.71858173,100.99,100.98,5.0]
[1646261681793,3.71858173,100.99,100.98,8.03219997]
[1646261682194,2.7238451,100.99,100.98,3.03219997]
[1646261682394,2.7238451,100.99,100.98,8.03219997]
[1646261682596,2.7238451,100.99,100.98,3.03219997]
[1646261683093,2.7238451,100.99,100.98,8.03219997]
[1646261683594,2.7238451,100.99,100.98,3.03219997]
[1646261683893,2.2238451,100.99,100.98,8.03219997]
[1646261684093,2.2238451,100.99,100.98,8.28219997]
[1646261684296,2.2238451,100.99,100.98,8.03219997]
[1646261685997,2.2238451,100.99,100.98,8.28219997]
[1646261688999,2.2238451,100.99,100.98,10.83124]
[1646261690906,2.2238451,100.99,100.98,8.28219997]
[1646261692204,2.2238451,100.99,100.98,106.96219997]
[1646261692404,2.2238451,100.99,100.98,121.38124]
[1646261694006,2.2238451,100.99,100.98,126.33124]
[1646261694205,107.66040874,101.0,100.98,126.33124]
[1646261694406,107.66040874,101.0,100.99,14.8528]
[1646261694607,107.66040874,101.0,100.99,31.9728]
[1646261694843,107.66040874,101.0,100.99,128.20184003]
[1646261695024,107.66040874,101.0,100.99,133.20184003]
[1646261695232,4.95,101.07,101.01,98.68]
[1646261695431,4.95,101.07,101.01,110.8]
[1646261695625,4.948,101.09,101.02,2.54904003]
[1646261695826,4.948,101.09,101.02,2.79904003]
[1646261696229,10.0,101.08,101.02,0.31838911]
[1646261696430,10.0,101.08,101.02,116.32834003]
[1646261696627,10.0,101.08,101.04,5.0]
[1646261696833,10.0,101.08,101.04,5.25]
[1646261698326,46.1833,101.1,101.04,0.25]
[1646261698526,46.4333,101.1,101.06,5.0]
[1646261698727,0.25,101.1,101.06,0.25]
[1646261699041,0.25,101.1,101.06,5.25]
[1646261699228,0.25,101.1,101.06,0.25]
[1646261699628,51.4268,101.13,101.06,0.25]
[1646261699831,51.4268,101.13,101.03,115.746]
[1646261700028,51.4268,101.13,101.04,113.5263]
[1646261700227,51.4268,101.13,101.04,116.32534003]
[1646261700430,51.4268,101.13,101.05,4.946]
[1646261700627,51.4268,101.13,101.05,5.196]
[1646261704742,51.1768,101.13,101.05,5.196]
[1646261704942,46.2308,101.13,101.05,5.196]
[1646261706948,46.2308,101.13,101.05,20.041]
[1646261707144,0.33146996,101.12,101.08,5.0]
[1646261707345,0.25,101.13,101.08,5.25]
[1646261707644,61.0374243,101.15,101.08,5.25]
[1646261708445,64.264,101.14,101.08,0.25]
[1646261708650,64.514,101.14,101.06,5.25]
[1646261709249,64.514,101.14,101.06,0.25]
[1646261709454,64.514,101.14,101.06,5.0]
[1646261709648,64.514,101.14,101.06,5.25]
[1646261709848,64.514,101.14,101.06,0.25]
[1646261710050,64.514,101.14,101.06,5.25]
[1646261711050,64.514,101.14,101.06,5.0]
[1646261711051,0.53923596,101.13,101.06,5.0]
[1646261711251,64.265,101.12,101.05,4.946]
[1646261711450,67.73716695,101.12,101.05,4.946]
[1646261711657,77.74622879,101.12,101.05,4.946]
[1646261711852,1.86093816,101.11,101.05,4.946]
[1646261712055,64.266,101.1,101.05,4.946]
[1646261712353,66.37693816,101.1,101.05,4.946]
[1646261713067,66.37693816,101.1,101.04,5.0]
[1646261713253,59.32,101.07,100.96,35.0645]
[1646261713452,59.32,101.07,100.91,186.99771641]
[1646261713453,0.31640423,101.06,100.95,11.87]
[1646261714252,59.32,101.05,100.95,11.87]
[1646261714454,59.57,101.05,100.94,14.8604]
[1646261714858,63.0126132,101.05,100.94,14.8604]
[1646261715558,59.32,101.03,100.98,5.0]
[1646261715760,59.57,101.03,100.98,5.0]
[1646261716564,59.32,101.01,100.98,5.0]
[1646261716763,59.57,101.01,100.98,5.0]
[1646261716965,64.27,101.0,100.98,5.0]
[1646261717165,64.52,101.0,100.98,5.0]
[1646261717365,59.57,101.0,100.98,5.0]
[1646261718064,4.95,100.99,100.98,5.0]
[1646261718262,0.25,100.99,100.98,5.0]
[1646261721070,64.27,101.01,100.98,5.0]
[1646261722566,64.52,101.01,100.98,5.0]
[1646261725571,59.57,101.01,100.98,5.0]
[1646261725772,59.32,101.01,100.98,5.0]
[1646261727178,59.57,101.01,100.98,5.0]
[1646261728375,0.25,101.01,100.98,5.0]
[1646261728590,7.608,101.02,100.98,5.25]
[1646261728790,7.608,101.02,100.94,2.54904003]
[1646261728988,7.608,101.02,100.99,5.0]
[1646261729794,7.358,101.02,100.99,5.0]
[1646261730591,7.358,101.02,100.94,161.50624003]
[1646261730792,7.358,101.02,101.0,5.0]
[1646261731592,7.358,101.02,100.96,98.68]
[1646261731791,7.358,101.02,100.97,4.95]
[1646261731990,7.358,101.02,101.0,5.0]
[1646261732193,7.358,101.02,101.01,1.0592756]
[1646261732592,7.358,101.02,101.0,5.0]
[1646261733591,7.358,101.02,101.01,1.0592756]
[1646261737403,4.95,101.05,101.01,1.0592756]
[1646261737605,5.2,101.05,101.01,1.0592756]
[1646261738203,0.25,101.05,101.01,1.0592756]
[1646261738605,59.57,101.06,101.01,1.0592756]
[1646261738807,0.25,101.06,101.01,1.0592756]
[1646261739009,59.57,101.07,101.01,1.0592756]
[1646261741709,4.948,101.06,101.01,1.0592756]
[1646261741913,5.198,101.06,101.01,1.0592756]
[1646261746517,5.198,101.06,101.01,6.0592756]
[1646261749641,64.518,101.06,101.01,6.0592756]
[1646261749942,64.518,101.06,101.01,1.0592756]
[1646261750542,4.948,101.06,101.01,1.0592756]
[1646261750767,46.8309,101.08,101.01,1.3092756]
[1646261751142,46.8309,101.08,101.01,6.3092756]
[1646261752145,47.0809,101.08,101.01,6.3092756]
[1646261754446,4.948,101.07,101.01,6.3092756]
[1646261754650,5.198,101.07,101.01,6.3092756]
[1646261757454,0.24139422,101.06,101.01,6.3092756]
[1646261758053,5.198,101.07,101.01,6.3092756]
[1646261758754,4.948,101.07,101.01,6.3092756]
[1646261759053,4.948,101.11,101.04,5.0]
[1646261759256,4.946,101.12,101.04,5.25]
[1646261759453,4.946,101.12,101.04,0.25]
[1646261759656,4.946,101.12,101.05,5.0]
[1646261759855,4.946,101.12,101.05,5.25]
[1646261760062,4.946,101.12,101.05,0.25]
[1646261760257,4.946,101.12,101.05,5.25]
[1646261760456,4.946,101.12,101.05,0.25]
[1646261760655,4.946,101.12,101.05,5.25]
[1646261761556,5.196,101.12,101.05,5.25]
[1646261762958,5.196,101.12,101.05,0.25]
[1646261763158,5.196,101.12,101.04,22.9166]
[1646261763357,5.196,101.12,101.06,5.0]
[1646261765059,0.11339277,101.11,101.06,5.0]
[1646261765261,5.196,101.12,101.06,5.0]
[1646261765760,0.25,101.12,101.06,5.0]
[1646261765961,82.3102,101.13,101.06,5.0]
[1646261769061,0.25,101.13,101.06,5.0]
[1646261769262,4.945,101.12,101.06,5.0]
[1646261769464,0.25,101.12,101.06,5.0]
[1646261769662,0.25,101.12,101.04,121.5966]
[1646261769868,0.25,101.12,101.07,5.0]
[1646261770263,4.946,101.13,101.07,5.0]
[1646261770466,142.7397,101.14,101.07,5.25]
[1646261770663,137.7947,101.14,101.07,5.25]
[1646261771366,137.7947,101.14,101.07,0.25]
[1646261771568,138.0447,101.14,101.04,136.01564003]
[1646261771968,25.1447,101.14,101.08,5.0]
[1646261772972,25.1447,101.14,101.06,23.8528]
[1646261773169,25.1447,101.14,101.07,5.0]
[1646261773369,25.1447,101.14,101.07,5.25]
[1646261774173,4.945,101.13,101.07,5.25]
[1646261774469,5.195,101.13,101.07,5.25]
[1646261774873,5.195,101.13,101.07,0.25]
[1646261775069,5.195,101.13,101.06,24.1028]
[1646261775472,5.195,101.13,101.07,5.0]
[1646261775672,5.195,101.13,101.07,5.25]
[1646261776776,5.195,101.13,101.07,7.79904003]
[1646261777874,0.25,101.13,101.08,0.33452187]
[1646261778075,25.1447,101.14,101.07,7.79904003]
[1646261781694,0.25,101.14,101.07,106.47904003]
[1646261781995,23.048,101.16,101.08,5.0]
[1646261782194,6.8058381,101.17,101.08,103.93]
[1646261782494,4.945,101.17,101.08,113.34904003]
[1646261782697,4.944,101.18,101.08,113.34904003]
[1646261782897,4.944,101.2,101.1,98.68]
[1646261783094,4.944,101.2,101.1,98.93]
[1646261783295,4.944,101.2,101.1,101.47904003]
[1646261783695,4.944,101.2,101.11,122.9408]
[1646261783896,5.194,101.2,101.11,123.1908]
[1646261784097,5.194,101.2,101.11,138.0269]
[1646261785094,4.944,101.2,101.11,138.0269]
[1646261785298,4.944,101.2,101.13,98.68]
[1646261785496,23.0129,101.21,101.13,98.93]
[1646261785897,27.9549,101.21,101.13,0.25]
[1646261786697,27.9549,101.21,101.12,15.0845]
[1646261787198,27.9549,101.21,101.14,5.0]
[1646261787398,27.9549,101.21,101.14,5.25]
[1646261788998,28.2049,101.21,101.14,5.25]
[1646261789199,23.2629,101.21,101.14,5.25]
[1646261791806,28.2039,101.21,101.14,5.25]
[1646261792305,27.9539,101.21,101.14,5.25]
[1646261792506,23.0129,101.21,101.14,5.25]
[1646261792706,23.0129,101.21,101.14,0.25]
[1646261793009,23.0129,101.21,101.16,5.0]
[1646261793205,23.0129,101.21,101.16,5.25]
[1646261793606,23.2629,101.21,101.16,5.25]
[1646261795624,23.2629,101.21,101.16,5.25]
[1646261796829,0.25,101.21,101.16,5.25]
[1646261797127,23.1461,101.22,101.16,5.25]
[1646261798429,23.1461,101.22,101.16,0.25]
[1646261798627,23.1461,101.22,101.16,5.0]
[1646261798926,23.1461,101.22,101.16,5.25]
[1646261800427,0.46856786,101.21,101.16,5.25]
[1646261800628,23.1461,101.22,101.16,5.25]
[1646261801028,23.1461,101.22,101.17,5.0]
[1646261802526,0.12130336,101.21,101.17,5.0]
[1646261802726,23.1461,101.22,101.17,5.0]
[1646261802926,23.1461,101.22,101.16,0.25]
[1646261803127,23.1461,101.22,101.15,24.3325]
[1646261803328,23.1461,101.22,101.17,5.0]
[1646261803727,23.1461,101.22,101.15,24.3325]
[1646261803927,23.1461,101.22,101.17,5.0]
[1646261804128,23.1461,101.22,101.15,24.3325]
[1646261804329,23.1461,101.22,101.17,5.0]
[1646261804529,23.1461,101.22,101.15,24.3325]
[1646261804730,23.1461,101.22,101.17,5.0]
[1646261806933,29.5787,101.24,101.17,5.25]
[1646261807134,24.8877,101.24,101.18,5.0]
[1646261807334,24.8877,101.24,101.18,5.25]
[1646261808337,24.8877,101.24,101.18,0.25]
[1646261808536,24.8877,101.24,101.18,5.0]
[1646261808740,0.25,101.24,101.18,5.25]
[1646261808937,5.19,101.25,101.18,9.175]
[1646261809336,5.19,101.25,101.18,14.175]
[1646261811340,0.19315954,101.24,101.18,14.175]
[1646261811538,64.51,101.25,101.18,5.25]
[1646261811737,0.16131497,101.24,101.18,5.25]
[1646261812137,5.19,101.25,101.18,5.25]
[1646261814757,5.19,101.25,101.18,103.93]
[1646261814758,4.94,101.25,101.18,103.93]
[1646261814958,112.9,101.26,101.2,5.0]
[1646261815158,112.9,101.26,101.2,5.25]
[1646261816158,113.15,101.26,101.2,5.25]
[1646261816359,0.25,101.26,101.2,2.52622205]
[1646261816559,4.939,101.26,101.19,23.6449]
[1646261816758,5.189,101.26,101.19,23.8949]
[1646261817362,64.509,101.26,101.18,5.06904003]
[1646261817561,84.10111185,101.26,101.18,2.52]
[1646261817761,1.86718148,101.25,101.18,2.52]
[1646261817960,64.259,101.24,101.18,2.52]
[1646261818162,64.509,101.24,101.18,2.52]
[1646261818361,66.37618148,101.24,101.18,2.52]
[1646261818562,0.10553176,101.23,101.18,2.52]
[1646261818762,0.10553176,101.23,101.15,23.1808]
[1646261818961,0.10553176,101.23,101.16,2.52]
[1646261819164,66.37618148,101.24,101.16,2.52]
[1646261820162,67.75566053,101.24,101.16,2.52]
[1646261821367,67.75566053,101.24,101.16,2.77]
[1646261821762,67.75566053,101.24,101.17,0.29505427]
[1646261821963,67.75566053,101.24,101.16,2.77]
[1646261822163,0.28039311,101.23,101.16,2.77]
[1646261822663,4.94,101.22,101.16,2.77]
[1646261822963,5.19,101.22,101.16,2.77]
[1646261823164,0.25,101.22,101.16,2.77]
[1646261823964,64.511,101.23,101.16,2.77]
[1646261825963,79.1351,101.23,101.16,2.77]
[1646261826164,0.28692171,101.22,101.16,2.77]
[1646261826764,79.1351,101.23,101.16,2.77]
[1646261828067,0.51252573,101.22,101.16,2.77]
[1646261831669,79.1351,101.23,101.17,0.44346647]
[1646261831870,79.1351,101.23,101.16,2.77]
[1646261832569,64.511,101.23,101.16,2.77]
[1646261832770,0.25,101.23,101.16,2.77]
[1646261832972,61.43718148,101.24,101.16,2.77]
[1646261836075,4.94,101.23,101.16,2.77]
[1646261836275,5.19,101.23,101.16,2.77]
[1646261836675,0.19876628,101.22,101.16,2.77]
[1646261836875,5.19,101.23,101.16,2.77]
[1646261837477,5.19,101.23,101.16,0.25]
[1646261837678,5.19,101.23,101.16,2.52]
[1646261837876,5.19,101.23,101.16,0.25]
[1646261838081,5.19,101.23,101.16,2.77]
[1646261839281,0.19344887,101.22,101.16,2.77]
[1646261839682,5.19,101.23,101.16,2.77]
[1646261844287,0.35527091,101.22,101.16,2.77]
[1646261844686,5.19,101.23,101.16,2.77]
[1646261845386,0.18046969,101.22,101.16,2.77]
[1646261845789,5.19,101.23,101.16,2.77]
[1646261846588,0.21691767,101.22,101.16,2.77]
[1646261846788,5.19,101.23,101.16,2.77]
[1646261849094,0.25,101.23,101.16,2.77]
[1646261849296,5.19,101.24,101.16,2.77]
[1646261849895,4.94,101.24,101.16,2.77]
[1646261851697,5.19,101.24,101.16,2.77]
[1646261852598,0.53923596,101.23,101.16,2.77]
[1646261852799,5.19,101.24,101.16,2.77]
[1646261853400,5.19,101.24,101.16,2.52]
[1646261853602,64.51,101.24,101.16,2.52]
[1646261853800,0.12947823,101.23,101.15,23.1808]
[1646261854000,4.941,101.22,101.15,25.7008]
[1646261854300,0.25,101.22,101.15,23.1808]
[1646261855300,4.941,101.23,101.15,23.1808]
[1646261855301,5.191,101.23,101.15,23.4308]
[1646261859206,5.191,101.23,101.14,41.7731]
[1646261859207,81.21258148,101.23,101.14,26.9416]
[1646261859501,81.21258148,101.23,101.14,24.6716]
[1646261859702,78.24818148,101.23,101.14,24.6716]
[1646261860204,59.32,101.21,101.14,24.6716]
[1646261860402,4.941,101.2,101.14,24.4216]
[1646261860605,5.191,101.2,101.14,24.4216]
[1646261861705,5.191,101.2,101.14,24.6716]
[1646261863925,0.25,101.2,101.14,24.6716]
[1646261864125,79.3492,101.21,101.14,24.6716]
[1646261866122,0.24677823,101.2,101.14,24.6716]
[1646261867023,79.3492,101.21,101.14,24.6716]
[1646261869524,81.21638148,101.21,101.14,24.6716]
[1646261869724,81.21638148,101.21,101.14,0.25]
[1646261869924,81.21638148,101.21,101.12,27.6374]
[1646261871129,81.21638148,101.21,101.12,25.1174]
[1646261871429,81.21638148,101.21,101.12,27.6374]
[1646261873930,81.21638148,101.21,101.12,32.5794]
[1646261875534,81.21638148,101.21,101.12,27.6374]
[1646261876134,0.12914888,101.2,101.12,27.6374]
[1646261876433,4.942,101.19,101.12,27.6374]
[1646261876635,0.25,101.19,101.12,27.6374]
[1646261877637,59.32,101.19,101.12,27.6374]
[1646261877837,59.57,101.19,101.12,27.6374]
[1646261880539,4.942,101.18,101.12,27.3874]
[1646261880739,4.942,101.18,101.1,53.6187]
[1646261880740,59.32,101.17,101.1,24.6102]
[1646261880941,59.57,101.17,101.1,24.6102]
[1646261881441,4.942,101.16,101.1,24.6102]
[1646261881640,5.192,101.16,101.1,24.6102]
[1646261881844,5.192,101.16,101.1,24.8602]
[1646261884345,64.512,101.16,101.1,24.6102]
[1646261884749,66.37918148,101.16,101.09,23.8872]
[1646261885750,80.91108148,101.16,101.09,23.8872]
[1646261886150,95.75588148,101.16,101.09,23.8872]
[1646261888954,107.62588148,101.16,101.09,23.8872]
[1646261889953,206.30588148,101.16,101.06,2.52]
[1646261890153,0.16109177,101.13,101.06,2.77]
[1646261890354,87.3843,101.13,101.06,2.77]
[1646261890556,87.6343,101.13,101.06,2.77]
[1646261890753,82.6893,101.13,101.06,2.77]
[1646261891154,82.6893,101.13,101.06,7.715]
[1646261891557,82.6893,101.13,101.06,32.4766]
[1646261897164,97.8799,101.13,101.06,32.4766]
[1646261897990,4.945,101.12,101.06,27.5316]
[1646261898191,5.195,101.12,101.06,27.5316]
[1646261899993,64.515,101.12,101.06,2.77]
[1646261900191,64.515,101.12,101.06,0.25]
[1646261900391,64.515,101.12,101.05,23.8033]
[1646261907101,0.21235584,101.11,101.05,23.8033]
[1646261908399,59.57,101.12,101.05,23.8033]
[1646261910903,59.57,101.12,101.06,0.15749025]
[1646261911101,64.266,101.11,101.05,23.8033]
[1646261911301,64.516,101.11,101.05,23.8033]
[1646261911705,59.57,101.11,101.05,23.8033]
[1646261915607,59.57,101.11,101.06,0.44346647]
[1646261916010,59.57,101.11,101.05,23.8033]
[1646261920515,59.57,101.11,101.05,23.5533]
[1646261920716,59.57,101.11,101.06,0.23110637]
[1646261920918,59.57,101.11,101.05,23.5533]
[1646261921117,74.4202,101.11,101.05,23.5533]
[1646261921317,64.266,101.1,101.04,4.946]
[1646261921618,88.5638,101.1,101.04,4.946]
[1646261921817,102.30098148,101.1,101.04,4.946]
[1646261922017,200.98098148,101.1,101.04,4.946]
[1646261922217,222.47976,101.1,101.01,24.9495]
[1646261922617,222.47976,101.1,101.0,2.52]
[1646261922817,315.55395084,101.1,100.99,24.6785]
[1646261923017,315.55395084,101.1,101.0,19.06190412]
[1646261923218,216.87395084,101.1,101.0,19.06190412]
[1646261923418,315.55395084,101.1,101.0,19.06190412]
[1646261923920,315.55395084,101.1,100.99,27.1985]
[1646261924122,315.55395084,101.1,100.99,24.6785]
[1646261924418,330.76535084,101.1,101.0,19.05920554]
[1646261924829,330.76535084,101.1,100.99,27.1985]
[1646261925220,330.76535084,101.1,100.99,24.6785]
[1646261925421,330.76535084,101.1,100.99,27.1985]
[1646261926121,330.76535084,101.1,100.99,27.4485]
[1646261926924,330.76535084,101.1,100.99,24.9285]
[1646261927324,330.76535084,101.1,100.99,27.4485]
[1646261927726,330.76535084,101.1,100.99,24.9285]
[1646261927926,0.10681736,101.09,100.99,27.4485]
[1646261928126,59.32,101.07,100.99,27.4485]
[1646261928329,59.32,101.05,100.99,27.1985]
[1646261928527,59.57,101.05,100.99,2.52]
[1646261929531,59.32,101.03,100.99,2.52]
[1646261929730,59.57,101.03,100.99,2.52]
[1646261931745,0.25,101.03,100.99,2.52]
[1646261931948,29.7773,101.04,100.99,2.52]
[1646261936452,29.7773,101.04,100.99,0.04964427]
[1646261936852,4.949,101.04,100.99,0.04964427]
[1646261937055,4.949,101.06,101.0,0.29779612]
[1646261937252,4.949,101.09,101.0,26.07563615]
[1646261937454,47.183,101.1,101.0,26.28563615]
[1646261937654,47.183,101.1,101.0,26.32563615]
[1646261937853,47.183,101.1,101.01,2.54904003]
[1646261938052,47.183,101.1,101.01,2.79904003]
[1646261938053,4.947,101.09,101.01,2.79904003]
[1646261938254,5.197,101.09,101.01,2.79904003]
[1646261939052,5.197,101.09,101.01,17.64954003]
[1646261943660,0.25,101.09,101.01,17.64954003]
[1646261943859,47.433,101.1,101.01,17.64954003]
[1646261944258,47.433,101.1,101.02,24.2672]
[1646261944459,47.433,101.1,101.02,24.5172]
[1646261947058,4.947,101.09,101.02,24.5172]
[1646261947262,5.197,101.09,101.02,24.5172]
[1646261950065,5.197,101.09,101.03,0.44346647]
[1646261950261,0.25,101.09,101.03,0.44346647]
[1646261950462,5.197,101.11,101.02,138.0464]
[1646261950761,0.25,101.11,101.02,138.0464]
[1646261950959,49.81177852,101.12,101.02,138.0464]
[1646261953464,44.86477852,101.12,101.02,138.0864]
[1646261953867,24.5193412,101.11,101.02,138.0864]
[1646261954064,24.7693412,101.11,101.02,138.0864]
[1646261954466,5.197,101.11,101.02,138.0864]
[1646261958467,0.25,101.11,101.02,138.0864]
[1646261958669,28.313,101.12,101.02,138.0864]
[1646261959067,48.00739672,101.12,101.02,138.0864]
[1646261960078,48.00739672,101.12,101.03,4.947]
[1646261960371,48.00739672,101.12,101.04,23.1901]
[1646261960571,48.00739672,101.12,101.04,23.4401]
[1646261961568,48.00739672,101.12,101.05,0.29467825]
[1646261961771,4.947,101.12,101.05,0.29467825]
[1646261961969,43.40593739,101.16,101.07,0.29467825]
[1646261962170,22.7588,101.16,101.07,24.86047825]
[1646261962370,23.458,101.17,101.07,138.20951828]
[1646261962570,4.944,101.16,101.08,10.944]
[1646261962772,4.944,101.16,101.08,18.12]
[1646261962970,4.944,101.16,101.08,23.064]
[1646261963171,4.944,101.16,101.08,18.12]
[1646261963371,4.944,101.16,101.09,4.944]
[1646261963574,5.194,101.16,101.09,5.194]
[1646261964071,0.25,101.16,101.09,5.194]
[1646261964271,23.708,101.17,101.09,5.194]
[1646261964471,23.708,101.17,101.09,28.9479]
[1646261965393,23.708,101.17,101.09,24.0039]
[1646261967897,23.708,101.17,101.1,4.944]
[1646261968095,23.708,101.17,101.1,5.194]
[1646261970397,59.32,101.19,101.1,5.194]
[1646261970596,59.57,101.19,101.11,23.4168]
[1646261970898,59.32,101.19,101.11,23.6668]
[1646261971597,4.942,101.18,101.11,23.6668]
[1646261971797,4.942,101.18,101.12,0.04]
[1646261972197,5.192,101.18,101.12,0.04]
[1646261972803,0.25,101.18,101.12,0.04]
[1646261973003,28.5725,101.19,101.12,0.04]
[1646261979808,23.6305,101.19,101.12,4.982]
[1646261980009,23.6305,101.19,101.12,5.232]
[1646261981810,23.6305,101.19,101.12,0.29]
[1646261982011,23.6305,101.19,101.12,0.04]
[1646261985614,23.6305,101.19,101.12,6.04]
[1646261985816,23.6305,101.19,101.12,0.29]
[1646261986616,0.40492883,101.18,101.12,0.29]
[1646261986816,23.6305,101.19,101.12,0.29]
[1646261987015,23.6305,101.19,101.12,0.04]
[1646261987817,23.6305,101.19,101.11,38.5028]
[1646261988817,23.6305,101.19,101.12,6.0]
[1646261989118,23.6305,101.19,101.12,0.25]
[1646261989319,82.9505,101.19,101.12,0.25]
[1646261989718,84.8121775,101.19,101.12,0.25]
[1646261990122,84.8121775,101.19,101.11,23.6668]
[1646261990922,82.9505,101.19,101.11,23.6668]
[1646261991821,84.8121775,101.19,101.11,23.6668]
[1646261993119,89.7541775,101.19,101.11,23.6668]
[1646261994124,28.5725,101.19,101.11,23.6668]
[1646261995127,23.6305,101.19,101.11,23.6668]
[1646261995327,4.942,101.18,101.11,23.6668]
[1646261995526,5.192,101.18,101.11,23.6668]
[1646261996525,4.942,101.18,101.11,23.6668]
[1646261996724,4.942,101.18,101.11,23.7068]
[1646261997326,4.942,101.18,101.11,23.6668]
[1646261997527,4.942,101.18,101.11,23.7068]
[1646261997925,5.192,101.18,101.11,23.7068]
[1646261999028,5.192,101.18,101.11,23.6668]
[1646261999230,5.192,101.18,101.11,23.7068]
[1646261999430,0.25,101.18,101.11,23.6668]
[1646261999730,1.8616775,101.18,101.11,23.7068]
[1646261999930,0.25,101.18,101.11,23.7068]
[1646262001234,23.6305,101.19,101.11,23.7068]
[1646262002833,28.5725,101.19,101.11,23.7068]
[1646262003034,0.53923596,101.18,101.11,23.7068]
[1646262003235,28.5725,101.19,101.11,23.7068]
[1646262003633,0.10728755,101.18,101.11,23.7068]
[1646262004134,4.942,101.18,101.11,23.7068]
[1646262004336,5.192,101.18,101.11,23.7068]
[1646262005137,5.192,101.18,101.11,23.4568]
[1646262005338,64.512,101.18,101.11,23.4168]
[1646262005940,23.7032,101.17,101.11,23.4168]
[1646262006159,83.2732,101.17,101.1,4.982]
[1646262006362,91.6172,101.17,101.1,4.982]
[1646262006562,91.6172,101.17,101.1,5.192]
[1646262006860,106.4607,101.17,101.1,4.942]
[1646262007061,4.942,101.16,101.1,4.942]
[1646262007260,59.32,101.15,101.1,4.942]
[1646262007461,59.57,101.15,101.1,4.942]
[1646262007961,158.25,101.15,101.06,5.0]
[1646262008165,59.32,101.13,101.06,5.0]
[1646262008361,59.57,101.13,101.06,5.0]
[1646262008562,64.515,101.13,101.06,5.0]